bitfinex/quotes_BTCUSD_20240823
["timestamp","ask_amount","ask_price","bid_price","bid_amount"]
[1724449610326,0.15617801,64366.0,64360.0,0.496049]
[1724449610566,0.15617801,64366.0,64360.0,0.651423]
[1724449610789,0.15617801,64366.0,64361.0,0.155373]
[1724449611019,0.15617801,64366.0,64360.0,0.49605]
[1724449611265,0.15617801,64366.0,64362.0,0.155369]
[1724449611741,0.15617801,64366.0,64363.0,0.155368]
[1724449613081,0.15617801,64366.0,64364.0,0.155365]
[1724449613962,0.15617801,64366.0,64365.0,0.155363]
[1724449614647,0.15700601,64366.0,64362.0,0.310739]
[1724449614871,0.15700601,64366.0,64364.0,0.155366]
[1724449615094,0.15700601,64366.0,64361.0,0.310743]
[1724449615338,0.15700601,64366.0,64363.0,0.155367]
[1724449615819,0.15700601,64366.0,64361.0,0.310743]
[1724449616067,0.55770601,64366.0,64362.0,0.15537]
[1724449616555,0.000828,64366.0,64363.0,0.4074]
[1724449616766,0.000828,64366.0,64364.0,0.155365]
[1724449617019,0.000828,64366.0,64363.0,0.4074]
[1724449617242,0.000828,64366.0,64363.0,0.562768]
[1724449618168,0.000828,64366.0,64363.0,0.4074]
[1724449618396,0.000828,64366.0,64362.0,0.15537]
[1724449618639,0.15617801,64365.0,64360.0,0.340673]
[1724449618891,0.15617801,64365.0,64360.0,0.1853]
[1724449619141,0.31154201,64365.0,64360.0,0.1853]
[1724449619392,0.15617801,64365.0,64360.0,0.1853]
[1724449619635,0.15617801,64365.0,64361.0,0.4031]
[1724449620569,0.15041814,64365.0,64361.0,0.4031]
[1724449621550,0.15041814,64365.0,64363.0,0.155368]
[1724449621807,0.17477436,64365.0,64363.0,0.155368]
[1724449622065,0.17477436,64365.0,64361.0,0.4031]
[1724449622301,0.17477436,64365.0,64362.0,0.15537]
[1724449622751,0.17477436,64365.0,64363.0,0.155368]
[1724449623003,0.02435622,64365.0,64363.0,0.155368]
[1724449623231,0.02435622,64365.0,64361.0,0.713846]
[1724449623465,0.02435622,64365.0,64364.0,0.155366]
[1724449623917,0.02435622,64365.0,64361.0,0.713846]
[1724449623918,0.02435622,64365.0,64363.0,0.155368]
[1724449626220,0.02435622,64365.0,64364.0,0.155366]
[1724449626949,0.155374,64361.0,64354.0,0.15539]
[1724449627223,0.31155401,64360.0,64353.0,0.155391]
[1724449627457,0.15617801,64364.0,64356.0,0.310768]
[1724449627685,0.15617801,64364.0,64359.0,0.155378]
[1724449628177,0.15617801,64364.0,64360.0,0.155375]
[1724449628660,0.15617801,64364.0,64358.0,0.310759]
[1724449628953,0.155368,64363.0,64356.0,0.155384]
[1724449629168,0.15617801,64362.0,64356.0,0.155384]
[1724449630059,0.15617801,64362.0,64355.0,0.310775]
[1724449630295,0.15617801,64362.0,64356.0,0.155384]
[1724449630516,0.15617801,64362.0,64357.0,0.155382]
[1724449630918,0.02435736,64361.0,64357.0,0.155382]
[1724449631172,0.15617801,64360.0,64357.0,0.155382]
[1724449632089,0.4041,64359.0,64352.0,0.1811]
[1724449632333,0.15617801,64358.0,64353.0,0.155391]
[1724449632576,0.15617801,64358.0,64352.0,0.1811]
[1724449632825,0.15617801,64358.0,64353.0,0.155391]
[1724449633311,0.15617801,64358.0,64354.0,0.15539]
[1724449633554,0.15617801,64358.0,64354.0,0.155388]
[1724449634025,0.15617801,64358.0,64355.0,0.155386]
[1724449634261,0.15617801,64358.0,64354.0,0.15539]
[1724449635421,0.15617801,64358.0,64352.0,0.1811]
[1724449635658,0.155384,64357.0,64350.0,0.0009108]
[1724449635901,0.15617801,64356.0,64350.0,0.1563088]
[1724449636137,0.31156301,64356.0,64350.0,0.1563088]
[1724449636610,0.15617801,64356.0,64350.0,0.1563088]
[1724449636846,0.31156301,64356.0,64350.0,0.1563088]
[1724449637089,0.31156301,64356.0,64350.0,0.0009108]
[1724449637322,0.31156301,64356.0,64352.0,0.0009097]
[1724449637550,0.155388,64355.0,64352.0,0.0009097]
[1724449637789,0.15617801,64354.0,64352.0,0.0009097]
[1724449638727,0.18053774,64354.0,64352.0,0.0009097]
[1724449639220,0.00100005,64353.0,64352.0,0.0009097]
[1724449639475,0.15617801,64353.0,64352.0,0.0009097]
[1724449639723,0.15717806,64353.0,64352.0,0.0009097]
[1724449640187,0.72227006,64353.0,64352.0,0.0009097]
[1724449640419,1.03205501,64353.0,64352.0,0.0009097]
[1724449640649,1.34284001,64353.0,64352.0,0.0009097]
[1724449641132,1.03205501,64353.0,64352.0,0.0009097]
[1724449642796,1.13205501,64353.0,64352.0,0.0009097]
[1724449643973,0.25617801,64353.0,64352.0,0.0009097]
[1724449644286,0.15617801,64353.0,64352.0,0.02081175]
[1724449644512,0.00745401,64358.0,64353.0,0.310784]
[1724449644763,0.00745401,64358.0,64352.0,0.0009097]
[1724449644764,0.15617801,64357.0,64352.0,0.0009097]
[1724449645221,0.15617801,64357.0,64353.0,0.17111395]
[1724449645709,0.15617801,64357.0,64354.0,0.155389]
[1724449645942,0.18053862,64357.0,64354.0,0.15539]
[1724449646173,0.18053862,64357.0,64354.0,0.31078]
[1724449646421,0.18053862,64357.0,64356.0,0.155385]
[1724449646691,0.02436061,64357.0,64356.0,0.466156]
[1724449646924,0.02436061,64357.0,64356.0,0.974127]
[1724449648415,0.02436061,64357.0,64356.0,0.352585]
[1724449648656,0.02436061,64357.0,64356.0,0.67907795]
[1724449649582,0.02436061,64357.0,64356.0,0.98984895]
[1724449649812,0.02436061,64357.0,64356.0,0.67907795]
[1724449650053,0.04650797,64373.0,64364.0,0.1972]
[1724449650277,0.51526896,64383.0,64380.0,0.577]
[1724449650509,0.15617801,64382.0,64381.0,0.155325]
[1724449650744,0.15617801,64382.0,64381.0,0.17104695]
[1724449650975,0.02435124,64383.0,64382.0,0.465967]
[1724449651441,0.02435124,64383.0,64382.0,0.776612]
[1724449651917,0.02435124,64383.0,64382.0,1.169712]
[1724449652186,0.02435124,64383.0,64382.0,1.19498849]
[1724449653357,0.13940251,64413.0,64382.0,1.19498849]
[1724449653358,0.155282,64399.0,64382.0,0.41837649]
[1724449653598,0.15617801,64398.0,64391.0,0.5754]
[1724449653832,0.500514,64410.0,64392.0,0.00310562]
[1724449654061,0.500514,64410.0,64391.0,0.5754]
[1724449654062,0.31143601,64409.0,64393.0,0.40882195]
[1724449654326,0.15617801,64409.0,64394.0,0.3931]
[1724449654556,0.15617801,64409.0,64403.0,0.155271]
[1724449654782,0.15617801,64409.0,64401.0,0.310549]
[1724449655009,0.15617801,64409.0,64403.0,0.155271]
[1724449655230,0.15617801,64409.0,64404.0,0.60067649]
[1724449655487,0.15617801,64409.0,64405.0,0.155266]
[1724449655714,0.15617801,64409.0,64404.0,0.60067649]
[1724449655715,0.15617801,64409.0,64406.0,0.155264]
[1724449655947,0.000828,64414.0,64407.0,0.155261]
[1724449656165,0.000828,64414.0,64406.0,0.310527]
[1724449656166,0.15617801,64413.0,64408.0,0.155258]
[1724449656406,0.15617801,64413.0,64406.0,0.310527]
[1724449656407,0.15617801,64413.0,64409.0,0.01572195]
[1724449656881,0.15617801,64413.0,64405.0,0.3931]
[1724449657580,0.15617801,64413.0,64407.0,0.155261]
[1724449657809,0.15617801,64413.0,64405.0,0.3931]
[1724449658028,0.15617801,64413.0,64406.0,0.155263]
[1724449658262,0.15617801,64413.0,64405.0,0.3931]
[1724449658263,0.15617801,64413.0,64407.0,0.155261]
[1724449658498,0.15617801,64413.0,64408.0,0.15526]
[1724449658943,0.15617801,64413.0,64406.0,0.310529]
[1724449659163,0.15617801,64413.0,64407.0,0.155261]
[1724449659438,0.15617801,64413.0,64405.0,0.3931]
[1724449659630,0.49912601,64413.0,64405.0,0.155266]
[1724449659888,0.34387801,64413.0,64405.0,0.155266]
[1724449660109,0.34387801,64413.0,64400.0,0.689158]
[1724449660110,0.155253,64411.0,64400.0,0.310558]
[1724449660343,0.31143501,64410.0,64400.0,0.310558]
[1724449660583,0.31143501,64410.0,64401.0,0.155276]
[1724449660811,0.155258,64409.0,64399.0,0.310562]
[1724449661032,0.31143801,64408.0,64400.0,0.155279]
[1724449661251,0.46670001,64408.0,64398.0,0.155282]
[1724449661504,0.31053,64406.0,64394.0,0.3786]
[1724449661743,0.15527,64404.0,64396.0,0.155287]
[1724449661997,0.4129,64401.0,64396.0,0.155287]
[1724449662234,0.56907801,64401.0,64396.0,0.155287]
[1724449662463,0.15617801,64401.0,64396.0,0.155287]
[1724449663122,0.15617801,64400.0,64394.0,0.155293]
[1724449663824,0.15617801,64400.0,64390.0,0.310605]
[1724449664066,0.4129,64399.0,64386.0,0.310623]
[1724449664289,0.4129,64399.0,64388.0,0.155306]
[1724449664290,0.31146201,64398.0,64388.0,0.155306]
[1724449664564,0.31146201,64398.0,64387.0,0.31062]
[1724449664565,0.31146201,64398.0,64389.0,0.155304]
[1724449664789,0.155286,64397.0,64389.0,0.155304]
[1724449665031,0.15617801,64396.0,64389.0,0.155304]
[1724449665256,0.15617801,64396.0,64390.0,0.155302]
[1724449665475,0.15617801,64396.0,64388.0,0.155307]
[1724449665704,0.15617801,64396.0,64389.0,0.155305]
[1724449666158,0.15617801,64396.0,64390.0,0.155303]
[1724449666661,0.15617801,64396.0,64382.0,0.3786]
[1724449666662,0.00100005,64395.0,64383.0,0.310639]
[1724449666881,0.155302,64391.0,64383.0,0.155319]
[1724449667177,0.15617801,64390.0,64382.0,0.533922]
[1724449667394,0.4129,64389.0,64382.0,0.155322]
[1724449667617,0.15617801,64388.0,64382.0,0.155322]
[1724449668059,0.15617801,64388.0,64380.0,0.155327]
[1724449668294,0.15617801,64388.0,64378.0,0.31066]
[1724449668295,0.15617801,64388.0,64379.0,0.310656]
[1724449668533,0.15617801,64388.0,64376.0,0.3786]
[1724449668795,0.15617801,64388.0,64377.0,0.155333]
[1724449669033,0.155318,64384.0,64374.0,0.46602]
[1724449669281,0.15617801,64383.0,64374.0,0.310681]
[1724449669760,0.4129,64382.0,64376.0,0.155337]
[1724449670010,0.4129,64382.0,64377.0,0.155333]
[1724449670011,0.15617801,64381.0,64377.0,0.155333]
[1724449670244,0.15617801,64381.0,64374.0,0.310683]
[1724449670245,0.15617801,64381.0,64374.0,0.15534]
[1724449670473,0.755929,64380.0,64371.0,0.155348]
[1724449670697,0.15617801,64379.0,64362.0,1.045]
[1724449670975,0.155338,64376.0,64368.0,0.155356]
[1724449671210,0.15617801,64375.0,64367.0,0.155358]
[1724449671432,0.15617801,64375.0,64366.0,0.155359]
[1724449671649,0.15617801,64375.0,64367.0,0.155357]
[1724449671893,0.15617801,64375.0,64366.0,0.31072]
[1724449672119,0.15617801,64375.0,64363.0,0.310733]
[1724449672342,0.02435427,64374.0,64373.0,0.870533]
[1724449672564,0.18053228,64374.0,64373.0,0.870533]
[1724449673464,0.18053228,64374.0,64373.0,0.559844]
[1724449673908,0.02435427,64374.0,64373.0,0.870533]
[1724449674145,0.02435427,64374.0,64373.0,1.181222]
[1724449675126,0.02435427,64374.0,64373.0,1.156222]
[1724449676031,0.02435427,64374.0,64373.0,1.342822]
[1724449676257,0.02435427,64374.0,64373.0,1.3437306]
[1724449676931,0.02435427,64374.0,64373.0,1.6544196]
[1724449678588,0.02435427,64374.0,64373.0,1.1571306]
[1724449679267,0.02435427,64374.0,64373.0,0.8464416]
[1724449680847,0.02435427,64374.0,64373.0,1.1571306]
[1724449682425,0.310617,64388.0,64373.0,1.1571306]
[1724449682426,0.155311,64387.0,64378.0,0.155331]
[1724449682668,0.155311,64387.0,64373.0,0.4054086]
[1724449682669,0.02435232,64374.0,64373.0,0.8714416]
[1724449682886,0.15617801,64386.0,64376.0,0.310671]
[1724449683360,0.15617801,64386.0,64379.0,0.155328]
[1724449683713,0.02435111,64384.0,64379.0,0.155328]
[1724449683952,0.02435111,64384.0,64377.0,0.466]
[1724449684176,0.02435111,64384.0,64377.0,0.155333]
[1724449684396,0.31150001,64383.0,64375.0,0.155338]
[1724449684620,0.31150001,64383.0,64373.0,0.4054086]
[1724449684621,0.15617801,64383.0,64373.0,0.4054086]
[1724449684844,0.02435111,64384.0,64373.0,0.4054086]
[1724449685083,0.02435111,64384.0,64378.0,0.155332]
[1724449685296,0.31149901,64383.0,64375.0,0.155338]
[1724449685726,0.155328,64380.0,64373.0,0.0009086]
[1724449685937,0.15617801,64379.0,64373.0,0.0009086]
[1724449688666,0.155342,64374.0,64373.0,0.0009086]
[1724449688888,0.31152001,64374.0,64373.0,0.0009086]
[1724449689551,0.33587497,64374.0,64373.0,0.0009086]
[1724449690735,0.18053297,64374.0,64373.0,0.0009086]
[1724449692206,0.02435496,64374.0,64373.0,0.0009086]
[1724449692657,0.02435496,64374.0,64373.0,0.5601526]
[1724449693332,0.02435496,64374.0,64373.0,1.0542416]
[1724449694882,0.02435496,64374.0,64373.0,1.3649306]
[1724449695765,0.02435496,64374.0,64373.0,0.7435526]
[1724449695977,0.02435496,64374.0,64373.0,0.5882086]
[1724449696199,0.02435496,64374.0,64373.0,0.0009086]
[1724449696893,0.18053297,64374.0,64373.0,0.0009086]
[1724449698515,0.18053297,64374.0,64373.0,0.01653456]
[1724449698743,0.18053297,64374.0,64373.0,0.01686699]
[1724449698991,0.18053297,64374.0,64373.0,0.75951099]
[1724449699445,0.02435496,64374.0,64373.0,1.07019999]
[1724449700284,0.02435496,64374.0,64373.0,1.38088899]
[1724449700955,0.02518196,64374.0,64373.0,1.38088899]
[1724449702243,0.02518196,64374.0,64373.0,1.07019999]
[1724449702453,0.02518196,64374.0,64373.0,0.01686699]
[1724449703778,0.18135997,64374.0,64373.0,0.00124103]
[1724449704525,0.33670197,64374.0,64373.0,0.00124103]
[1724449706109,0.64738597,64374.0,64373.0,0.00124103]
[1724449706574,0.33670197,64374.0,64373.0,0.00124103]
[1724449706799,0.64738597,64374.0,64373.0,0.00124103]
[1724449708134,0.33670197,64374.0,64373.0,0.00124103]
[1724449708832,0.95806997,64374.0,64373.0,0.00124103]
[1724449709276,0.9655538,64374.0,64373.0,0.00124103]
[1724449710893,1.3795538,64374.0,64373.0,0.00124103]
[1724449711116,1.6902378,64374.0,64373.0,0.00124103]
[1724449711777,1.73674373,64374.0,64373.0,0.00124103]
[1724449712443,1.6902378,64374.0,64373.0,0.00124103]
[1724449713386,1.73676784,64374.0,64373.0,0.00124103]
[1724449713609,1.7902378,64374.0,64373.0,0.00124103]
[1724449713833,1.7899826,64374.0,64373.0,0.00124103]
[1724449715421,1.9807826,64374.0,64373.0,0.00124103]
[1724449716104,2.07379447,64374.0,64373.0,0.00124103]
[1724449716546,1.9807826,64374.0,64373.0,0.00124103]
[1724449717675,2.13691428,64374.0,64373.0,0.00124103]
[1724449718099,2.13791428,64374.0,64373.0,0.00124103]
[1724449718314,2.23095184,64374.0,64373.0,0.00124103]
[1724449718618,2.13791428,64374.0,64373.0,0.00124103]
[1724449718830,2.25517911,64374.0,64373.0,0.00124103]
[1724449719275,2.13991428,64374.0,64373.0,0.00124103]
[1724449719492,2.13891428,64374.0,64373.0,0.00124103]
[1724449719712,2.13791428,64374.0,64373.0,0.00124103]
[1724449720323,1.9827826,64374.0,64373.0,0.00124103]
[1724449720526,2.0057826,64374.0,64373.0,0.00124103]
[1724449721273,2.0047826,64374.0,64373.0,0.00124103]
[1724449721491,2.0057826,64374.0,64373.0,0.00124103]
[1724449721916,2.0047826,64374.0,64373.0,0.00124103]
[1724449722122,2.02620036,64374.0,64373.0,0.00124103]
[1724449722355,2.02420036,64374.0,64373.0,0.00124103]
[1724449722568,2.14046519,64374.0,64373.0,0.00124103]
[1724449722771,2.02420036,64374.0,64373.0,0.00124103]
[1724449722983,2.33488436,64374.0,64373.0,0.00124103]
[1724449723190,2.45114919,64374.0,64373.0,0.00124103]
[1724449723394,2.45214919,64374.0,64373.0,0.00124103]
[1724449723817,2.45114919,64374.0,64373.0,0.00124103]
[1724449724893,2.45107725,64374.0,64373.0,0.00124103]
[1724449726365,2.33488436,64374.0,64373.0,0.00124103]
[1724449726998,2.45107725,64374.0,64373.0,0.00124103]
[1724449727207,2.33588436,64374.0,64373.0,0.00124103]
[1724449727438,2.33488436,64374.0,64373.0,0.00124103]
[1724449727877,2.02520036,64374.0,64373.0,0.00124103]
[1724449728313,2.02420036,64374.0,64373.0,0.00124103]
[1724449730743,0.310707,64370.0,64367.0,0.0002552]
[1724449730947,0.15617801,64368.0,64367.0,0.0002552]
[1724449731273,1.03296001,64368.0,64367.0,0.0002552]
[1724449731917,1.03296001,64368.0,64367.0,0.0012552]
[1724449732128,1.03296001,64368.0,64361.0,0.564]
[1724449732129,0.155371,64362.0,64361.0,0.564]
[1724449732341,0.31154901,64362.0,64361.0,0.564]
[1724449732793,0.62229101,64362.0,64361.0,0.564]
[1724449734335,0.62215916,64362.0,64361.0,0.564]
[1724449735193,0.62315916,64362.0,64361.0,0.564]
[1724449735406,0.62215916,64362.0,64361.0,0.564]
[1724449735836,0.62215916,64362.0,64361.0,0.566]
[1724449736262,0.62956762,64362.0,64361.0,0.566]
[1724449736961,0.62956762,64362.0,64361.0,0.5669097]
[1724449737620,0.16358647,64362.0,64361.0,0.5669097]
[1724449739205,0.31895747,64362.0,64361.0,0.5669097]
[1724449739627,0.62969947,64362.0,64361.0,0.5669097]
[1724449740057,0.62969947,64362.0,64361.0,0.0029097]
[1724449742164,0.62969947,64362.0,64361.0,0.5748097]
[1724449742399,0.62969947,64362.0,64361.0,0.0029097]
[1724449743096,0.94044147,64362.0,64361.0,0.0029097]
[1724449745617,0.94044147,64362.0,64361.0,0.3782097]
[1724449746066,0.94044147,64362.0,64361.0,0.5748097]
[1724449747367,0.31895747,64362.0,64361.0,0.5748097]
[1724449747794,0.16358647,64362.0,64361.0,0.5748097]
[1724449748482,0.1,64368.0,64367.0,0.155359]
[1724449748732,0.16376889,64368.0,64367.0,0.155359]
[1724449749222,0.16376889,64368.0,64367.0,0.727259]
[1724449750179,0.04652407,64380.0,64372.0,0.5719]
[1724449750449,0.04652407,64395.0,64388.0,0.3753]
[1724449750695,0.15617801,64394.0,64390.0,0.155303]
[1724449750945,0.15617801,64394.0,64388.0,0.3753]
[1724449751627,0.15617801,64394.0,64386.0,0.1966]
[1724449751628,0.15617801,64394.0,64393.0,0.4004]
[1724449751888,0.15617801,64394.0,64393.0,0.748896]
[1724449752163,0.000826,64402.0,64401.0,0.310554]
[1724449752398,0.000826,64402.0,64401.0,1.059431]
[1724449753741,0.000826,64402.0,64401.0,0.748877]
[1724449753965,0.000826,64402.0,64401.0,1.059431]
[1724449754866,0.000826,64402.0,64401.0,1.369985]
[1724449755307,0.000826,64402.0,64401.0,0.748877]
[1724449755525,0.000826,64402.0,64401.0,1.369985]
[1724449756518,0.000826,64402.0,64401.0,1.374985]
[1724449757596,0.000826,64402.0,64401.0,1.369985]
[1724449757960,0.000826,64402.0,64401.0,1.377985]
[1724449757961,0.001826,64402.0,64401.0,1.377985]
[1724449763843,0.001826,64402.0,64401.0,1.067431]
[1724449765844,0.001826,64402.0,64401.0,0.756877]
[1724449766515,0.001826,64402.0,64401.0,1.067431]
[1724449767192,0.001826,64402.0,64401.0,0.3016]
[1724449767910,0.15800401,64402.0,64401.0,0.3016]
[1724449768136,0.001826,64402.0,64401.0,0.767431]
[1724449768361,0.001826,64402.0,64401.0,0.456877]
[1724449770146,0.001826,64402.0,64401.0,0.637277]
[1724449770790,0.001826,64402.0,64401.0,0.947831]
[1724449776580,0.001826,64402.0,64401.0,1.258385]
[1724449777925,0.001826,64402.0,64401.0,0.456877]
[1724449778804,0.001826,64402.0,64401.0,0.767431]
[1724449781380,0.15800401,64402.0,64401.0,0.30182015]
[1724449781598,0.001826,64402.0,64401.0,0.61237415]
[1724449781823,0.001826,64402.0,64401.0,1.07820515]
[1724449782045,0.001826,64402.0,64401.0,0.76765115]
[1724449783159,0.001826,64402.0,64401.0,1.07820515]
[1724449783595,0.001826,64402.0,64401.0,0.00822015]
[1724449783596,0.15800401,64402.0,64401.0,0.00822015]
[1724449784034,0.15800401,64402.0,64401.0,0.00912875]
[1724449784893,0.001826,64402.0,64401.0,0.00912875]
[1724449785094,0.001826,64402.0,64401.0,0.47495975]
[1724449785756,0.001826,64402.0,64401.0,1.19441375]
[1724449786404,0.001826,64402.0,64401.0,0.47495975]
[1724449786794,0.001826,64402.0,64401.0,0.16440575]
[1724449787749,0.001826,64402.0,64401.0,1.19441375]
[1724449787972,0.001826,64402.0,64401.0,0.88385975]
[1724449790255,0.15800401,64402.0,64401.0,0.00912875]
[1724449793034,0.001826,64402.0,64401.0,0.87155975]
[1724449793255,0.001826,64402.0,64401.0,0.89455975]
[1724449794883,0.001826,64402.0,64401.0,1.20511375]
[1724449796473,0.001826,64402.0,64401.0,1.20511374]
[1724449796694,0.001826,64402.0,64401.0,0.89455974]
[1724449797579,0.001826,64402.0,64401.0,1.20511374]
[1724449797806,0.001826,64402.0,64401.0,0.89455974]
[1724449798030,0.001826,64402.0,64401.0,1.20511374]
[1724449798950,0.001826,64402.0,64401.0,1.40421374]
[1724449799651,0.001826,64402.0,64401.0,1.71476774]
[1724449800313,0.001826,64402.0,64401.0,1.40421374]
[1724449801265,0.001826,64402.0,64401.0,1.71476774]
[1724449801494,0.001826,64402.0,64401.0,1.71476773]
[1724449801725,0.001826,64402.0,64401.0,1.40421373]
[1724449802162,0.001826,64402.0,64401.0,1.71476773]
[1724449805361,0.001826,64402.0,64401.0,1.40421373]
[1724449806322,0.001826,64402.0,64401.0,1.71476773]
[1724449807268,0.001826,64402.0,64401.0,1.40421373]
[1724449808409,0.001826,64402.0,64401.0,1.71476773]
[1724449808842,0.001826,64402.0,64401.0,1.40421373]
[1724449809295,0.001826,64402.0,64401.0,1.71476773]
[1724449809497,0.001866,64402.0,64401.0,1.71476773]
[1724449816146,0.001866,64402.0,64401.0,1.40421373]
[1724449816364,0.001866,64402.0,64401.0,1.71476773]
[1724449820790,0.001866,64402.0,64401.0,1.71576773]
[1724449822011,0.001866,64402.0,64401.0,1.71476773]
[1724449822487,0.001866,64402.0,64401.0,2.31971866]
[1724449822735,0.001866,64402.0,64401.0,2.00916465]
[1724449822986,0.001866,64402.0,64401.0,2.00816465]
[1724449823209,0.001866,64402.0,64401.0,2.00916465]
[1724449825802,0.000866,64402.0,64401.0,2.01416465]
[1724449827673,0.000866,64402.0,64401.0,2.17034266]
[1724449828555,0.000866,64402.0,64401.0,2.16934266]
[1724449829226,0.000866,64402.0,64401.0,2.17034266]
[1724449830104,0.000866,64402.0,64401.0,2.01316465]
[1724449832196,0.000866,64402.0,64401.0,2.17034266]
[1724449832797,0.000866,64402.0,64401.0,2.48089666]
[1724449835338,0.000866,64402.0,64401.0,2.58089666]
[1724449835547,0.000866,64402.0,64401.0,2.63008683]
[1724449836354,0.000827,64413.0,64412.0,1.997054]
[1724449836566,0.000827,64413.0,64412.0,2.62303216]
[1724449837015,0.000827,64413.0,64412.0,2.93353316]
[1724449837941,0.000827,64413.0,64412.0,2.95153316]
[1724449838154,0.000827,64413.0,64412.0,2.93753316]
[1724449838577,0.000827,64413.0,64412.0,2.95153316]
[1724449839010,0.000827,64413.0,64412.0,2.95153315]
[1724449839226,0.00827,64427.0,64426.0,1.086515]
[1724449839436,0.00827,64427.0,64426.0,1.50073511]
[1724449839681,0.00827,64427.0,64426.0,1.96734612]
[1724449840392,0.00827,64427.0,64426.0,1.50073511]
[1724449840823,0.00827,64427.0,64426.0,1.65691312]
[1724449841048,0.00827,64427.0,64426.0,1.85041312]
[1724449841254,0.00827,64427.0,64426.0,1.96241312]
[1724449841481,0.00827,64427.0,64426.0,2.27284612]
[1724449841715,0.00827,64431.0,64429.0,1.477466]
[1724449841926,0.00827,64431.0,64429.0,2.14376104]
[1724449842138,0.00827,64431.0,64429.0,2.45418004]
[1724449842587,0.00827,64431.0,64429.0,2.76459904]
[1724449842806,0.00827,64431.0,64429.0,2.81978214]
[1724449843254,0.00827,64431.0,64429.0,2.91978214]
[1724449843696,0.00827,64431.0,64430.0,2.3469601]
[1724449843917,0.00827,64431.0,64430.0,2.63335821]
[1724449844163,0.00827,64433.0,64432.0,0.005]
[1724449844436,0.00827,64444.0,64434.0,1.054092]
[1724449844667,0.00827,64444.0,64434.0,2.2948582]
[1724449844897,0.00827,64444.0,64434.0,2.6052532]
[1724449845337,0.00827,64444.0,64435.0,2.0384381]
[1724449845590,0.00827,64444.0,64435.0,2.58823313]
[1724449846528,0.00827,64444.0,64435.0,2.58823312]
[1724449847208,0.00827,64444.0,64435.0,2.60223312]
[1724449847425,0.00827,64444.0,64435.0,2.62523312]
[1724449849225,0.00827,64444.0,64438.0,1.401687]
[1724449849458,0.00827,64444.0,64438.0,2.19476819]
[1724449849686,0.00827,64444.0,64438.0,2.29476819]
[1724449849918,0.00827,64444.0,64438.0,2.60514318]
[1724449850827,0.00827,64444.0,64438.0,2.30876818]
[1724449851042,0.00827,64444.0,64438.0,1.67008508]
[1724449851275,0.00827,64444.0,64438.0,1.10053207]
[1724449851276,0.4062,64441.0,64438.0,1.10053207]
[1724449851492,0.4062,64441.0,64438.0,0.79015707]
[1724449851716,0.4062,64441.0,64438.0,0.89015707]
[1724449851974,0.00827,64444.0,64438.0,1.76261008]
[1724449852200,0.00827,64444.0,64438.0,1.35771008]
[1724449852421,0.00827,64444.0,64438.0,1.76261008]
[1724449852879,0.00827,64444.0,64438.0,1.78561008]
[1724449853102,0.00827,64444.0,64438.0,0.81315707]
[1724449853321,0.00827,64444.0,64438.0,0.79015707]
[1724449853764,0.00827,64444.0,64438.0,0.79015706]
[1724449853979,0.00827,64444.0,64438.0,1.10053206]
[1724449854433,0.00827,64444.0,64438.0,1.25671007]
[1724449854655,0.00827,64444.0,64438.0,1.27971007]
[1724449855568,0.00831,64439.0,64438.0,1.68461007]
[1724449856476,0.00831,64439.0,64438.0,1.67061007]
[1724449856691,0.00831,64439.0,64438.0,1.68461007]
[1724449857171,0.00831,64439.0,64438.0,1.68561007]
[1724449857628,0.00831,64439.0,64438.0,1.78561007]
[1724449857850,0.00831,64439.0,64438.0,2.09598507]
[1724449860768,0.00831,64439.0,64438.0,2.09598506]
[1724449862176,0.00831,64439.0,64438.0,1.78561006]
[1724449862629,0.00831,64439.0,64438.0,2.09598506]
[1724449862855,0.00831,64439.0,64438.0,1.78461006]
[1724449863080,0.00831,64439.0,64438.0,1.37971006]
[1724449863581,0.00831,64439.0,64438.0,1.75771006]
[1724449864510,0.00831,64439.0,64438.0,2.25868506]
[1724449864753,0.00831,64439.0,64438.0,2.25768506]
[1724449865202,0.00831,64439.0,64438.0,2.25868506]
[1724449866313,0.00831,64439.0,64438.0,2.26068506]
[1724449866539,0.00831,64439.0,64438.0,2.26268506]
[1724449866758,0.00831,64439.0,64438.0,2.25868506]
[1724449867196,0.00831,64439.0,64438.0,2.26068506]
[1724449867415,0.00831,64439.0,64438.0,2.25868506]
[1724449867649,0.00831,64439.0,64438.0,2.26268506]
[1724449867870,0.00831,64439.0,64438.0,2.25868506]
[1724449868085,0.00831,64439.0,64438.0,2.26068506]
[1724449868544,0.00831,64439.0,64438.0,2.25868506]
[1724449868759,0.00831,64439.0,64438.0,2.26268506]
[1724449869187,0.00831,64439.0,64438.0,2.26068506]
[1724449869404,0.58101,64439.0,64438.0,1.69108506]
[1724449869615,0.00831,64439.0,64438.0,2.06908505]
[1724449871416,0.00831,64439.0,64438.0,2.37946005]
[1724449871638,0.00831,64439.0,64438.0,2.06908505]
[1724449872755,0.00831,64439.0,64438.0,2.37946005]
[1724449872976,0.00831,64439.0,64438.0,2.06908505]
[1724449873679,0.00831,64439.0,64438.0,1.69008505]
[1724449873894,0.00831,64439.0,64438.0,1.69108505]
[1724449874349,0.00831,64439.0,64438.0,2.00146005]
[1724449874574,0.00831,64439.0,64438.0,2.10298505]
[1724449875540,0.00831,64439.0,64438.0,2.10198505]
[1724449875785,0.00831,64439.0,64438.0,1.98348198]
[1724449876275,0.00831,64439.0,64438.0,2.39538198]
[1724449877198,0.00831,64439.0,64438.0,1.98348197]
[1724449883029,0.39411,64439.0,64438.0,1.98348197]
[1724449884174,0.00831,64439.0,64438.0,1.98348197]
[1724449884411,0.00831,64439.0,64438.0,1.97848197]
[1724449885312,0.59281,64439.0,64438.0,1.97848197]
[1724449886876,0.59281,64439.0,64438.0,1.52890703]
[1724449887100,0.59281,64439.0,64438.0,1.21853202]
[1724449887561,0.59281,64439.0,64438.0,1.19553202]
[1724449888012,0.20701,64439.0,64438.0,1.19553202]
[1724449888646,0.00831,64439.0,64438.0,1.19553202]
[1724449888856,0.00831,64439.0,64438.0,1.21853202]
[1724449891673,0.00831,64439.0,64438.0,1.52890702]
[1724449892541,0.39441,64439.0,64438.0,1.52890702]
[1724449893002,0.00831,64439.0,64438.0,1.52890702]
[1724449896047,0.57741,64439.0,64438.0,1.11853202]
[1724449898566,0.53853,64439.0,64438.0,1.11853202]
[1724449900043,0.53853,64439.0,64438.0,1.11944062]
[1724449900252,0.539356,64439.0,64438.0,1.11944062]